{"text_format":"1","workbook":"xlsx","n_sheets":2,"sheets":["Cáculo de Ocupación","Hoja3"],"not_rendered":{"charts":0,"images":1,"macros":1,"external_links":0,"defined_names":19,"comments":0,"pivot_tables":0},"unopened":[],"bounds":{"document_bytes":16777216,"sheet_cells":100000,"rows_first":2000,"rows_last":500,"rows_between":2000,"halvings":0,"cell_chars":16384,"cell_head_chars":4096},"cells_cut":0,"cells_raw":0,"read":"whole","date_system":"1900"}

{"sheet":"Cáculo de Ocupación","index":0,"n_rows":50,"n_cols":13,"rows_kept":50,"cut":false,"hidden":false,"merged":[[1,5,3,5],[8,10,9,10],[11,10,13,10],[14,10,15,10],[16,10,17,10],[18,10,21,10],[22,10,25,10],[26,10,31,10],[32,10,48,10],[2,10,5,11],[6,1,7,6],[1,10,1,11]]}
[]
[null,null,null,null,"Web","ACCESOS DIRECTOS",null,null,null,null,"INSTRUCIONES DE USO"]
[null,null,null,null,"Servicios",null,null,null,null,null,"- Indicar en la columna \"Uso del Proyecto\" el uso asignado según proyecto a las áreas del local o planta. Ej: Vestibulo, Sala de ordenadores, etc.\n- Indicar el uso asimilado al CTE\n- Indicar Sub-Uso\n- Indicar la superficie útil de cada habitáculo"]
[null,null,null,null,"Post "]
[]
[]
[null,"CÁLCULO DE OCUPACIÓN SEGÚN EL CTE DB-SI"]
[null,null,null,null,null,null,null,null,null,null,"Uso Previsto","Zona, tipo de actividad","Ocupación (m2/persona)"]
[null,null,null,null,null,null,null,null,null,null,"Cualquiera","Zonas de ocupación ocasional y accesibles únicamente a efectos de mantenimiento:salas de máquinas, locales para material de limpieza, etc",0]
[null,null,null,null,null,"AFORO TOTAL",{"$f":"+SUM(Tabla1[OCUPACIÓN (personas)])","v":0},null,null,null,null,"Aseos de planta",3]
[null,"USO DEL PROYECTO","USO PRINCIPAL (CTE)","SUB-USO","DENSIDAD DE OCUPACIÓN (m2/persona)","SUPERFICIE ÚTIL (m2)","OCUPACIÓN (personas)",null,null,null,"Residencial Vivienda","Plantas de vivienda",20]
[null,null,"Cualquiera","Zonas de ocupación ocasional y accesibles únicamente a efectos de mantenimiento:salas de máquinas, locales para material de limpieza, etc",{"$f":"IF(Tabla1[[#This Row],[SUB-USO]]=\"\",0,VLOOKUP(Tabla1[[#This Row],[SUB-USO]],$L$9:$M$51,2,FALSE))","v":0},0,{"$f":"IF(Tabla1[[#This Row],[SUPERFICIE ÚTIL (m2)]]=0,0,ROUNDUP(Tabla1[[#This Row],[SUPERFICIE ÚTIL (m2)]]/Tabla1[[#This Row],[DENSIDAD DE OCUPACIÓN (m2/persona)]],0))","v":0},null,null,null,"Residencial Público","Zonas de alojamiento",20]
[null,null,"Cualquiera","Zonas de ocupación ocasional y accesibles únicamente a efectos de mantenimiento:salas de máquinas, locales para material de limpieza, etc",{"$f":"IF(Tabla1[[#This Row],[SUB-USO]]=\"\",0,VLOOKUP(Tabla1[[#This Row],[SUB-USO]],$L$9:$M$51,2,FALSE))","v":0},0,{"$f":"IF(Tabla1[[#This Row],[SUPERFICIE ÚTIL (m2)]]=0,0,ROUNDUP(Tabla1[[#This Row],[SUPERFICIE ÚTIL (m2)]]/Tabla1[[#This Row],[DENSIDAD DE OCUPACIÓN (m2/persona)]],0))","v":0},null,null,null,null,"Salones de uso múltiple",1]
[null,null,"Cualquiera","Zonas de ocupación ocasional y accesibles únicamente a efectos de mantenimiento:salas de máquinas, locales para material de limpieza, etc",{"$f":"IF(Tabla1[[#This Row],[SUB-USO]]=\"\",0,VLOOKUP(Tabla1[[#This Row],[SUB-USO]],$L$9:$M$51,2,FALSE))","v":0},0,{"$f":"IF(Tabla1[[#This Row],[SUPERFICIE ÚTIL (m2)]]=0,0,ROUNDUP(Tabla1[[#This Row],[SUPERFICIE ÚTIL (m2)]]/Tabla1[[#This Row],[DENSIDAD DE OCUPACIÓN (m2/persona)]],0))","v":0},null,null,null,null,"Vestíbulos generales y zonas generales de uso público en plantas de sótano,baja y entreplanta",2]
[null,null,"Cualquiera","Zonas de ocupación ocasional y accesibles únicamente a efectos de mantenimiento:salas de máquinas, locales para material de limpieza, etc",{"$f":"IF(Tabla1[[#This Row],[SUB-USO]]=\"\",0,VLOOKUP(Tabla1[[#This Row],[SUB-USO]],$L$9:$M$51,2,FALSE))","v":0},0,{"$f":"IF(Tabla1[[#This Row],[SUPERFICIE ÚTIL (m2)]]=0,0,ROUNDUP(Tabla1[[#This Row],[SUPERFICIE ÚTIL (m2)]]/Tabla1[[#This Row],[DENSIDAD DE OCUPACIÓN (m2/persona)]],0))","v":0},null,null,null,"Aparcamiento","Vinculado a una actividad sujeta a horarios: comercial, espectáculos, oficina, etc",15]
[null,null,"Cualquiera","Zonas de ocupación ocasional y accesibles únicamente a efectos de mantenimiento:salas de máquinas, locales para material de limpieza, etc",{"$f":"IF(Tabla1[[#This Row],[SUB-USO]]=\"\",0,VLOOKUP(Tabla1[[#This Row],[SUB-USO]],$L$9:$M$51,2,FALSE))","v":0},0,{"$f":"IF(Tabla1[[#This Row],[SUPERFICIE ÚTIL (m2)]]=0,0,ROUNDUP(Tabla1[[#This Row],[SUPERFICIE ÚTIL (m2)]]/Tabla1[[#This Row],[DENSIDAD DE OCUPACIÓN (m2/persona)]],0))","v":0},null,null,null,null,"En otros casos",40]
[null,null,"Cualquiera","Zonas de ocupación ocasional y accesibles únicamente a efectos de mantenimiento:salas de máquinas, locales para material de limpieza, etc",{"$f":"IF(Tabla1[[#This Row],[SUB-USO]]=\"\",0,VLOOKUP(Tabla1[[#This Row],[SUB-USO]],$L$9:$M$51,2,FALSE))","v":0},0,{"$f":"IF(Tabla1[[#This Row],[SUPERFICIE ÚTIL (m2)]]=0,0,ROUNDUP(Tabla1[[#This Row],[SUPERFICIE ÚTIL (m2)]]/Tabla1[[#This Row],[DENSIDAD DE OCUPACIÓN (m2/persona)]],0))","v":0},null,null,null,"Administrativo","Plantas o zonas de oficinas",10]
[null,null,"Cualquiera","Zonas de ocupación ocasional y accesibles únicamente a efectos de mantenimiento:salas de máquinas, locales para material de limpieza, etc",{"$f":"IF(Tabla1[[#This Row],[SUB-USO]]=\"\",0,VLOOKUP(Tabla1[[#This Row],[SUB-USO]],$L$9:$M$51,2,FALSE))","v":0},0,{"$f":"IF(Tabla1[[#This Row],[SUPERFICIE ÚTIL (m2)]]=0,0,ROUNDUP(Tabla1[[#This Row],[SUPERFICIE ÚTIL (m2)]]/Tabla1[[#This Row],[DENSIDAD DE OCUPACIÓN (m2/persona)]],0))","v":0},null,null,null,null,"Vestíbulos generales y zonas de uso público",2]
[null,null,"Cualquiera","Zonas de ocupación ocasional y accesibles únicamente a efectos de mantenimiento:salas de máquinas, locales para material de limpieza, etc",{"$f":"IF(Tabla1[[#This Row],[SUB-USO]]=\"\",0,VLOOKUP(Tabla1[[#This Row],[SUB-USO]],$L$9:$M$51,2,FALSE))","v":0},0,{"$f":"IF(Tabla1[[#This Row],[SUPERFICIE ÚTIL (m2)]]=0,0,ROUNDUP(Tabla1[[#This Row],[SUPERFICIE ÚTIL (m2)]]/Tabla1[[#This Row],[DENSIDAD DE OCUPACIÓN (m2/persona)]],0))","v":0},null,null,null,"Docente","Conjunto de la planta o del edificio",10]
[null,null,"Cualquiera","Zonas de ocupación ocasional y accesibles únicamente a efectos de mantenimiento:salas de máquinas, locales para material de limpieza, etc",{"$f":"IF(Tabla1[[#This Row],[SUB-USO]]=\"\",0,VLOOKUP(Tabla1[[#This Row],[SUB-USO]],$L$9:$M$51,2,FALSE))","v":0},0,{"$f":"IF(Tabla1[[#This Row],[SUPERFICIE ÚTIL (m2)]]=0,0,ROUNDUP(Tabla1[[#This Row],[SUPERFICIE ÚTIL (m2)]]/Tabla1[[#This Row],[DENSIDAD DE OCUPACIÓN (m2/persona)]],0))","v":0},null,null,null,null,"Locales diferentes de aulas, como laboratorios, talleres, gimnasios, salas dedibujo, etc.",5]
[null,null,"Cualquiera","Zonas de ocupación ocasional y accesibles únicamente a efectos de mantenimiento:salas de máquinas, locales para material de limpieza, etc",{"$f":"IF(Tabla1[[#This Row],[SUB-USO]]=\"\",0,VLOOKUP(Tabla1[[#This Row],[SUB-USO]],$L$9:$M$51,2,FALSE))","v":0},0,{"$f":"IF(Tabla1[[#This Row],[SUPERFICIE ÚTIL (m2)]]=0,0,ROUNDUP(Tabla1[[#This Row],[SUPERFICIE ÚTIL (m2)]]/Tabla1[[#This Row],[DENSIDAD DE OCUPACIÓN (m2/persona)]],0))","v":0},null,null,null,null,"Aulas (excepto de escuelas infantiles)",1.5]
[null,null,"Cualquiera","Zonas de ocupación ocasional y accesibles únicamente a efectos de mantenimiento:salas de máquinas, locales para material de limpieza, etc",{"$f":"IF(Tabla1[[#This Row],[SUB-USO]]=\"\",0,VLOOKUP(Tabla1[[#This Row],[SUB-USO]],$L$9:$M$51,2,FALSE))","v":0},0,{"$f":"IF(Tabla1[[#This Row],[SUPERFICIE ÚTIL (m2)]]=0,0,ROUNDUP(Tabla1[[#This Row],[SUPERFICIE ÚTIL (m2)]]/Tabla1[[#This Row],[DENSIDAD DE OCUPACIÓN (m2/persona)]],0))","v":0},null,null,null,null,"Aulas de escuelas infantiles y salas de lectura de bibliotecas",2]
[null,null,"Cualquiera","Zonas de ocupación ocasional y accesibles únicamente a efectos de mantenimiento:salas de máquinas, locales para material de limpieza, etc",{"$f":"IF(Tabla1[[#This Row],[SUB-USO]]=\"\",0,VLOOKUP(Tabla1[[#This Row],[SUB-USO]],$L$9:$M$51,2,FALSE))","v":0},0,{"$f":"IF(Tabla1[[#This Row],[SUPERFICIE ÚTIL (m2)]]=0,0,ROUNDUP(Tabla1[[#This Row],[SUPERFICIE ÚTIL (m2)]]/Tabla1[[#This Row],[DENSIDAD DE OCUPACIÓN (m2/persona)]],0))","v":0},null,null,null,"Hospitalario","Salas de espera",2]
[null,null,"Cualquiera","Zonas de ocupación ocasional y accesibles únicamente a efectos de mantenimiento:salas de máquinas, locales para material de limpieza, etc",{"$f":"IF(Tabla1[[#This Row],[SUB-USO]]=\"\",0,VLOOKUP(Tabla1[[#This Row],[SUB-USO]],$L$9:$M$51,2,FALSE))","v":0},0,{"$f":"IF(Tabla1[[#This Row],[SUPERFICIE ÚTIL (m2)]]=0,0,ROUNDUP(Tabla1[[#This Row],[SUPERFICIE ÚTIL (m2)]]/Tabla1[[#This Row],[DENSIDAD DE OCUPACIÓN (m2/persona)]],0))","v":0},null,null,null,null,"Zonas de hospitalización",15]
[null,null,"Cualquiera","Zonas de ocupación ocasional y accesibles únicamente a efectos de mantenimiento:salas de máquinas, locales para material de limpieza, etc",{"$f":"IF(Tabla1[[#This Row],[SUB-USO]]=\"\",0,VLOOKUP(Tabla1[[#This Row],[SUB-USO]],$L$9:$M$51,2,FALSE))","v":0},0,{"$f":"IF(Tabla1[[#This Row],[SUPERFICIE ÚTIL (m2)]]=0,0,ROUNDUP(Tabla1[[#This Row],[SUPERFICIE ÚTIL (m2)]]/Tabla1[[#This Row],[DENSIDAD DE OCUPACIÓN (m2/persona)]],0))","v":0},null,null,null,null,"Servicios ambulatorios y de diagnóstico",10]
[null,null,"Cualquiera","Zonas de ocupación ocasional y accesibles únicamente a efectos de mantenimiento:salas de máquinas, locales para material de limpieza, etc",{"$f":"IF(Tabla1[[#This Row],[SUB-USO]]=\"\",0,VLOOKUP(Tabla1[[#This Row],[SUB-USO]],$L$9:$M$51,2,FALSE))","v":0},0,{"$f":"IF(Tabla1[[#This Row],[SUPERFICIE ÚTIL (m2)]]=0,0,ROUNDUP(Tabla1[[#This Row],[SUPERFICIE ÚTIL (m2)]]/Tabla1[[#This Row],[DENSIDAD DE OCUPACIÓN (m2/persona)]],0))","v":0},null,null,null,null,"Zonas destinadas a tratamiento a pacientes internados",20]
[null,null,"Cualquiera","Zonas de ocupación ocasional y accesibles únicamente a efectos de mantenimiento:salas de máquinas, locales para material de limpieza, etc",{"$f":"IF(Tabla1[[#This Row],[SUB-USO]]=\"\",0,VLOOKUP(Tabla1[[#This Row],[SUB-USO]],$L$9:$M$51,2,FALSE))","v":0},0,{"$f":"IF(Tabla1[[#This Row],[SUPERFICIE ÚTIL (m2)]]=0,0,ROUNDUP(Tabla1[[#This Row],[SUPERFICIE ÚTIL (m2)]]/Tabla1[[#This Row],[DENSIDAD DE OCUPACIÓN (m2/persona)]],0))","v":0},null,null,null,"Comercial","En establecimientos comerciales:áreas de ventas en plantas de sótano, baja y entreplanta",2]
[null,null,"Cualquiera","Zonas de ocupación ocasional y accesibles únicamente a efectos de mantenimiento:salas de máquinas, locales para material de limpieza, etc",{"$f":"IF(Tabla1[[#This Row],[SUB-USO]]=\"\",0,VLOOKUP(Tabla1[[#This Row],[SUB-USO]],$L$9:$M$51,2,FALSE))","v":0},0,{"$f":"IF(Tabla1[[#This Row],[SUPERFICIE ÚTIL (m2)]]=0,0,ROUNDUP(Tabla1[[#This Row],[SUPERFICIE ÚTIL (m2)]]/Tabla1[[#This Row],[DENSIDAD DE OCUPACIÓN (m2/persona)]],0))","v":0},null,null,null,null,"En establecimientos comerciales:áreas de ventas en plantas diferentes de las anteriores",3]
[null,null,"Cualquiera","Zonas de ocupación ocasional y accesibles únicamente a efectos de mantenimiento:salas de máquinas, locales para material de limpieza, etc",{"$f":"IF(Tabla1[[#This Row],[SUB-USO]]=\"\",0,VLOOKUP(Tabla1[[#This Row],[SUB-USO]],$L$9:$M$51,2,FALSE))","v":0},0,{"$f":"IF(Tabla1[[#This Row],[SUPERFICIE ÚTIL (m2)]]=0,0,ROUNDUP(Tabla1[[#This Row],[SUPERFICIE ÚTIL (m2)]]/Tabla1[[#This Row],[DENSIDAD DE OCUPACIÓN (m2/persona)]],0))","v":0},null,null,null,null,"En zonas comunes de centros comerciales: mercados y galerías de alimentación",2]
[null,null,"Cualquiera","Zonas de ocupación ocasional y accesibles únicamente a efectos de mantenimiento:salas de máquinas, locales para material de limpieza, etc",{"$f":"IF(Tabla1[[#This Row],[SUB-USO]]=\"\",0,VLOOKUP(Tabla1[[#This Row],[SUB-USO]],$L$9:$M$51,2,FALSE))","v":0},0,{"$f":"IF(Tabla1[[#This Row],[SUPERFICIE ÚTIL (m2)]]=0,0,ROUNDUP(Tabla1[[#This Row],[SUPERFICIE ÚTIL (m2)]]/Tabla1[[#This Row],[DENSIDAD DE OCUPACIÓN (m2/persona)]],0))","v":0},null,null,null,null,"En zonas comunes de centros comerciales: plantas de sótano, baja y entreplanta o en cualquier otra con acceso desdeel espacio exterior",3]
[null,null,"Cualquiera","Zonas de ocupación ocasional y accesibles únicamente a efectos de mantenimiento:salas de máquinas, locales para material de limpieza, etc",{"$f":"IF(Tabla1[[#This Row],[SUB-USO]]=\"\",0,VLOOKUP(Tabla1[[#This Row],[SUB-USO]],$L$9:$M$51,2,FALSE))","v":0},0,{"$f":"IF(Tabla1[[#This Row],[SUPERFICIE ÚTIL (m2)]]=0,0,ROUNDUP(Tabla1[[#This Row],[SUPERFICIE ÚTIL (m2)]]/Tabla1[[#This Row],[DENSIDAD DE OCUPACIÓN (m2/persona)]],0))","v":0},null,null,null,null,"En zonas comunes de centros comerciales: plantas diferentes de las anteriores",5]
[null,null,"Cualquiera","Zonas de ocupación ocasional y accesibles únicamente a efectos de mantenimiento:salas de máquinas, locales para material de limpieza, etc",{"$f":"IF(Tabla1[[#This Row],[SUB-USO]]=\"\",0,VLOOKUP(Tabla1[[#This Row],[SUB-USO]],$L$9:$M$51,2,FALSE))","v":0},0,{"$f":"IF(Tabla1[[#This Row],[SUPERFICIE ÚTIL (m2)]]=0,0,ROUNDUP(Tabla1[[#This Row],[SUPERFICIE ÚTIL (m2)]]/Tabla1[[#This Row],[DENSIDAD DE OCUPACIÓN (m2/persona)]],0))","v":0},null,null,null,null,"En áreas de venta en las que no sea previsible gran afluencia depúblico, tales como exposición y venta de muebles, vehículos, etc.",5]
[null,null,"Cualquiera","Zonas de ocupación ocasional y accesibles únicamente a efectos de mantenimiento:salas de máquinas, locales para material de limpieza, etc",{"$f":"IF(Tabla1[[#This Row],[SUB-USO]]=\"\",0,VLOOKUP(Tabla1[[#This Row],[SUB-USO]],$L$9:$M$51,2,FALSE))","v":0},0,{"$f":"IF(Tabla1[[#This Row],[SUPERFICIE ÚTIL (m2)]]=0,0,ROUNDUP(Tabla1[[#This Row],[SUPERFICIE ÚTIL (m2)]]/Tabla1[[#This Row],[DENSIDAD DE OCUPACIÓN (m2/persona)]],0))","v":0},null,null,null,"Pública concurrencia","Zonas destinadas a espectadores sentados: con asientos definidos en el proyecto",1]
[null,null,"Cualquiera","Zonas de ocupación ocasional y accesibles únicamente a efectos de mantenimiento:salas de máquinas, locales para material de limpieza, etc",{"$f":"IF(Tabla1[[#This Row],[SUB-USO]]=\"\",0,VLOOKUP(Tabla1[[#This Row],[SUB-USO]],$L$9:$M$51,2,FALSE))","v":0},0,{"$f":"IF(Tabla1[[#This Row],[SUPERFICIE ÚTIL (m2)]]=0,0,ROUNDUP(Tabla1[[#This Row],[SUPERFICIE ÚTIL (m2)]]/Tabla1[[#This Row],[DENSIDAD DE OCUPACIÓN (m2/persona)]],0))","v":0},null,null,null,null,"Zonas destinadas a espectadores sentados: sin asientos definidos en el proyecto",0.5]
[null,null,"Cualquiera","Zonas de ocupación ocasional y accesibles únicamente a efectos de mantenimiento:salas de máquinas, locales para material de limpieza, etc",{"$f":"IF(Tabla1[[#This Row],[SUB-USO]]=\"\",0,VLOOKUP(Tabla1[[#This Row],[SUB-USO]],$L$9:$M$51,2,FALSE))","v":0},0,{"$f":"IF(Tabla1[[#This Row],[SUPERFICIE ÚTIL (m2)]]=0,0,ROUNDUP(Tabla1[[#This Row],[SUPERFICIE ÚTIL (m2)]]/Tabla1[[#This Row],[DENSIDAD DE OCUPACIÓN (m2/persona)]],0))","v":0},null,null,null,null,"Zonas de espectadores de pie",0.25]
[null,null,"Cualquiera","Zonas de ocupación ocasional y accesibles únicamente a efectos de mantenimiento:salas de máquinas, locales para material de limpieza, etc",{"$f":"IF(Tabla1[[#This Row],[SUB-USO]]=\"\",0,VLOOKUP(Tabla1[[#This Row],[SUB-USO]],$L$9:$M$51,2,FALSE))","v":0},0,{"$f":"IF(Tabla1[[#This Row],[SUPERFICIE ÚTIL (m2)]]=0,0,ROUNDUP(Tabla1[[#This Row],[SUPERFICIE ÚTIL (m2)]]/Tabla1[[#This Row],[DENSIDAD DE OCUPACIÓN (m2/persona)]],0))","v":0},null,null,null,null,"Zonas de público en discotecas",0.5]
[null,null,"Cualquiera","Zonas de ocupación ocasional y accesibles únicamente a efectos de mantenimiento:salas de máquinas, locales para material de limpieza, etc",{"$f":"IF(Tabla1[[#This Row],[SUB-USO]]=\"\",0,VLOOKUP(Tabla1[[#This Row],[SUB-USO]],$L$9:$M$51,2,FALSE))","v":0},0,{"$f":"IF(Tabla1[[#This Row],[SUPERFICIE ÚTIL (m2)]]=0,0,ROUNDUP(Tabla1[[#This Row],[SUPERFICIE ÚTIL (m2)]]/Tabla1[[#This Row],[DENSIDAD DE OCUPACIÓN (m2/persona)]],0))","v":0},null,null,null,null,"Zonas de público de pie, en bares, cafeterías, etc.",1]
[null,null,"Cualquiera","Zonas de ocupación ocasional y accesibles únicamente a efectos de mantenimiento:salas de máquinas, locales para material de limpieza, etc",{"$f":"IF(Tabla1[[#This Row],[SUB-USO]]=\"\",0,VLOOKUP(Tabla1[[#This Row],[SUB-USO]],$L$9:$M$51,2,FALSE))","v":0},0,{"$f":"IF(Tabla1[[#This Row],[SUPERFICIE ÚTIL (m2)]]=0,0,ROUNDUP(Tabla1[[#This Row],[SUPERFICIE ÚTIL (m2)]]/Tabla1[[#This Row],[DENSIDAD DE OCUPACIÓN (m2/persona)]],0))","v":0},null,null,null,null,"Zonas de público en gimnasios: con aparatos",5]
[null,null,"Cualquiera","Zonas de ocupación ocasional y accesibles únicamente a efectos de mantenimiento:salas de máquinas, locales para material de limpieza, etc",{"$f":"IF(Tabla1[[#This Row],[SUB-USO]]=\"\",0,VLOOKUP(Tabla1[[#This Row],[SUB-USO]],$L$9:$M$51,2,FALSE))","v":0},0,{"$f":"IF(Tabla1[[#This Row],[SUPERFICIE ÚTIL (m2)]]=0,0,ROUNDUP(Tabla1[[#This Row],[SUPERFICIE ÚTIL (m2)]]/Tabla1[[#This Row],[DENSIDAD DE OCUPACIÓN (m2/persona)]],0))","v":0},null,null,null,null,"Zonas de público en gimnasios: sin aparatos",1.5]
[null,null,"Cualquiera","Zonas de ocupación ocasional y accesibles únicamente a efectos de mantenimiento:salas de máquinas, locales para material de limpieza, etc",{"$f":"IF(Tabla1[[#This Row],[SUB-USO]]=\"\",0,VLOOKUP(Tabla1[[#This Row],[SUB-USO]],$L$9:$M$51,2,FALSE))","v":0},0,{"$f":"IF(Tabla1[[#This Row],[SUPERFICIE ÚTIL (m2)]]=0,0,ROUNDUP(Tabla1[[#This Row],[SUPERFICIE ÚTIL (m2)]]/Tabla1[[#This Row],[DENSIDAD DE OCUPACIÓN (m2/persona)]],0))","v":0},null,null,null,null,"Piscinas públicaszonas de baño (superficie de los vasos de las piscinas)",2]
[null,null,"Cualquiera","Zonas de ocupación ocasional y accesibles únicamente a efectos de mantenimiento:salas de máquinas, locales para material de limpieza, etc",{"$f":"IF(Tabla1[[#This Row],[SUB-USO]]=\"\",0,VLOOKUP(Tabla1[[#This Row],[SUB-USO]],$L$9:$M$51,2,FALSE))","v":0},0,{"$f":"IF(Tabla1[[#This Row],[SUPERFICIE ÚTIL (m2)]]=0,0,ROUNDUP(Tabla1[[#This Row],[SUPERFICIE ÚTIL (m2)]]/Tabla1[[#This Row],[DENSIDAD DE OCUPACIÓN (m2/persona)]],0))","v":0},null,null,null,null,"Piscinas públicaszonas de estancia de público en piscinas descubiertas ",4]
[null,null,"Cualquiera","Zonas de ocupación ocasional y accesibles únicamente a efectos de mantenimiento:salas de máquinas, locales para material de limpieza, etc",{"$f":"IF(Tabla1[[#This Row],[SUB-USO]]=\"\",0,VLOOKUP(Tabla1[[#This Row],[SUB-USO]],$L$9:$M$51,2,FALSE))","v":0},0,{"$f":"IF(Tabla1[[#This Row],[SUPERFICIE ÚTIL (m2)]]=0,0,ROUNDUP(Tabla1[[#This Row],[SUPERFICIE ÚTIL (m2)]]/Tabla1[[#This Row],[DENSIDAD DE OCUPACIÓN (m2/persona)]],0))","v":0},null,null,null,null,"Salones de uso múltiple en edificios para congresos, hoteles, etc.",1]
[null,null,"Cualquiera","Zonas de ocupación ocasional y accesibles únicamente a efectos de mantenimiento:salas de máquinas, locales para material de limpieza, etc",{"$f":"IF(Tabla1[[#This Row],[SUB-USO]]=\"\",0,VLOOKUP(Tabla1[[#This Row],[SUB-USO]],$L$9:$M$51,2,FALSE))","v":0},0,{"$f":"IF(Tabla1[[#This Row],[SUPERFICIE ÚTIL (m2)]]=0,0,ROUNDUP(Tabla1[[#This Row],[SUPERFICIE ÚTIL (m2)]]/Tabla1[[#This Row],[DENSIDAD DE OCUPACIÓN (m2/persona)]],0))","v":0},null,null,null,null,"Zonas de público en restaurantes de “comida rápida”, (p. ej: hamburgueserías,pizzerías…)",1.2]
[null,null,null,null,null,null,null,null,null,null,null,"Zonas de público sentado en bares, cafeterías, restaurantes, etc.",1.5]
[null,null,null,null,null,null,null,null,null,null,null,"Salas de espera, salas de lectura en bibliotecas, zonas de uso público enmuseos, galerías de arte, ferias y exposiciones, etc.",2]
[null,null,null,null,null,null,null,null,null,null,null,"Vestíbulos generales, zonas de uso público en plantas de sótano, baja yentreplanta",2]
[null,null,null,null,null,null,null,null,null,null,null,"Vestíbulos, vestuarios, camerinos y otras dependencias similares y anejas asalas de espectáculos y de reunión",2]
[null,null,null,null,null,null,null,null,null,null,null,"Zonas de público en terminales de transporte",10]
[null,null,null,null,null,null,null,null,null,null,null,"Zonas de servicio de bares, restaurantes, cafeterías, etc.",10]
[null,null,null,null,null,null,null,null,null,null,"Archivos, almacenes","Archivos, almacenes",40]

{"sheet":"Hoja3","index":1,"n_rows":45,"n_cols":13,"rows_kept":45,"cut":false,"hidden":true,"merged":[[1,3,1,12]]}
[]
[null,"Uso Previsto",null,"Zona, tipo de actividad"]
[null,"Cualquiera",{"$f":"+D4","v":"Tabla2"},"Cualquiera","Residencial Vivienda","Residencial Público","Aparcamiento","Administrativo","Docente","Hospitalario","Comercial","Pública concurrencia","Archivos, almacenes"]
[null,"Residencial Vivienda",{"$f":"+E4","v":"Tabla3"},"Tabla2","Tabla3","Tabla4","Tabla5","Tabla6","Tabla7","Tabla8","Tabla9","Tabla10","Tabla11"]
[null,"Residencial Público",{"$f":"+F4","v":"Tabla4"},"Zonas de ocupación ocasional y accesibles únicamente a efectos de mantenimiento:salas de máquinas, locales para material de limpieza, etc","Plantas de vivienda","Zonas de alojamiento","Vinculado a una actividad sujeta a horarios: comercial, espectáculos, oficina, etc","Plantas o zonas de oficinas","Conjunto de la planta o del edificio","Salas de espera","En establecimientos comerciales:áreas de ventas en plantas de sótano, baja y entreplanta","Zonas destinadas a espectadores sentados: con asientos definidos en el proyecto","Archivos, almacenes"]
[null,"Aparcamiento",{"$f":"+G4","v":"Tabla5"},"Aseos de planta"," ","Salones de uso múltiple","En otros casos","Vestíbulos generales y zonas de uso público","Locales diferentes de aulas, como laboratorios, talleres, gimnasios, salas dedibujo, etc.","Zonas de hospitalización","En establecimientos comerciales:áreas de ventas en plantas diferentes de las anteriores","Zonas destinadas a espectadores sentados: sin asientos definidos en el proyecto"," "]
[null,"Administrativo",{"$f":"+H4","v":"Tabla6"},null,null,"Vestíbulos generales y zonas generales de uso público en plantas de sótano,baja y entreplanta"," ",null,"Aulas (excepto de escuelas infantiles)","Servicios ambulatorios y de diagnóstico","En zonas comunes de centros comerciales: mercados y galerías de alimentación","Zonas de espectadores de pie"," "]
[null,"Docente",{"$f":"+I4","v":"Tabla7"},null,null,null,null,null,"Aulas de escuelas infantiles y salas de lectura de bibliotecas","Zonas destinadas a tratamiento a pacientes internados","En zonas comunes de centros comerciales: plantas de sótano, baja y entreplanta o en cualquier otra con acceso desdeel espacio exterior","Zonas de público en discotecas"," "]
[null,"Hospitalario",{"$f":"+J4","v":"Tabla8"},null,null,null,null,null,null,null,"En zonas comunes de centros comerciales: plantas diferentes de las anteriores","Zonas de público de pie, en bares, cafeterías, etc."," "]
[null,"Comercial",{"$f":"+K4","v":"Tabla9"},null,null,null,null,null,null,null,"En áreas de venta en las que no sea previsible gran afluencia depúblico, tales como exposición y venta de muebles, vehículos, etc.","Zonas de público en gimnasios: con aparatos"," "]
[null,"Pública concurrencia",{"$f":"+L4","v":"Tabla10"},null,null,null,null,null,null,null,null,"Zonas de público en gimnasios: sin aparatos"," "]
[null,"Archivos, almacenes",{"$f":"+M4","v":"Tabla11"},null,null,null,null,null,null,null,null,"Piscinas públicaszonas de baño (superficie de los vasos de las piscinas)"," "]
[null,null,null,null,null,null,null,null,null,null,null,"Piscinas públicaszonas de estancia de público en piscinas descubiertas "," "]
[null,{"$f":"+'Cáculo de Ocupación'!C12","v":"Cualquiera"},{"$f":"+VLOOKUP(B14,$B$3:$C$12,2,FALSE)","v":"Tabla2"},"Salones de uso múltiple",null,null,null,null,null,null,null,"Salones de uso múltiple en edificios para congresos, hoteles, etc."," "]
[null,{"$f":"+'Cáculo de Ocupación'!C13","v":"Cualquiera"},{"$f":"+VLOOKUP(B15,$B$3:$C$12,2,FALSE)","v":"Tabla2"},"Salones de uso múltiple",null,null,null,null,null,null,null,"Zonas de público en restaurantes de “comida rápida”, (p. ej: hamburgueserías,pizzerías…)"," "]
[null,{"$f":"+'Cáculo de Ocupación'!C14","v":"Cualquiera"},"Tabla2","Salones de uso múltiple",null,null,null,null,null,null,null,"Zonas de público sentado en bares, cafeterías, restaurantes, etc."," "]
[null,{"$f":"+'Cáculo de Ocupación'!C15","v":"Cualquiera"},"Tabla2","Salones de uso múltiple",null,null,null,null,null,null,null,"Salas de espera, salas de lectura en bibliotecas, zonas de uso público enmuseos, galerías de arte, ferias y exposiciones, etc."," "]
[null,{"$f":"+'Cáculo de Ocupación'!C16","v":"Cualquiera"},"Tabla2","Salones de uso múltiple",null,null,null,null,null,null,null,"Vestíbulos generales, zonas de uso público en plantas de sótano, baja yentreplanta"," "]
[null,{"$f":"+'Cáculo de Ocupación'!C17","v":"Cualquiera"},"Tabla2","Salones de uso múltiple",null,null,null,null,null,null,null,"Vestíbulos, vestuarios, camerinos y otras dependencias similares y anejas asalas de espectáculos y de reunión"," "]
[null,{"$f":"+'Cáculo de Ocupación'!C18","v":"Cualquiera"},"Tabla2","Salones de uso múltiple",null,null,null,null,null,null,null,"Zonas de público en terminales de transporte"," "]
[null,{"$f":"+'Cáculo de Ocupación'!C19","v":"Cualquiera"},"Tabla2","Salones de uso múltiple",null,null,null,null,null,null,null,"Zonas de servicio de bares, restaurantes, cafeterías, etc."," "]
[null,{"$f":"+'Cáculo de Ocupación'!C20","v":"Cualquiera"},"Tabla2","Salones de uso múltiple"]
[null,{"$f":"+'Cáculo de Ocupación'!C21","v":"Cualquiera"},"Tabla2","Salones de uso múltiple"]
[null,{"$f":"+'Cáculo de Ocupación'!C22","v":"Cualquiera"},"Tabla2","Salones de uso múltiple"]
[null,{"$f":"+'Cáculo de Ocupación'!C23","v":"Cualquiera"},"Tabla2","Salones de uso múltiple"]
[null,{"$f":"+'Cáculo de Ocupación'!C24","v":"Cualquiera"},"Tabla2","Salones de uso múltiple"]
[null,{"$f":"+'Cáculo de Ocupación'!C25","v":"Cualquiera"},"Tabla2","Salones de uso múltiple"]
[null,{"$f":"+'Cáculo de Ocupación'!C26","v":"Cualquiera"},"Tabla2","Salones de uso múltiple"]
[null,{"$f":"+'Cáculo de Ocupación'!C27","v":"Cualquiera"},"Tabla2","Salones de uso múltiple"]
[null,{"$f":"+'Cáculo de Ocupación'!C28","v":"Cualquiera"},"Tabla2","Salones de uso múltiple"]
[null,{"$f":"+'Cáculo de Ocupación'!C29","v":"Cualquiera"},"Tabla2","Salones de uso múltiple"]
[null,{"$f":"+'Cáculo de Ocupación'!C30","v":"Cualquiera"},"Tabla2","Salones de uso múltiple"]
[null,{"$f":"+'Cáculo de Ocupación'!C31","v":"Cualquiera"},"Tabla2","Salones de uso múltiple"]
[null,{"$f":"+'Cáculo de Ocupación'!C32","v":"Cualquiera"},"Tabla2","Salones de uso múltiple"]
[null,{"$f":"+'Cáculo de Ocupación'!C33","v":"Cualquiera"},"Tabla2","Salones de uso múltiple"]
[null,{"$f":"+'Cáculo de Ocupación'!C34","v":"Cualquiera"},"Tabla2","Salones de uso múltiple"]
[null,{"$f":"+'Cáculo de Ocupación'!C35","v":"Cualquiera"},"Tabla2","Salones de uso múltiple"]
[null,{"$f":"+'Cáculo de Ocupación'!C36","v":"Cualquiera"},{"$f":"+VLOOKUP(B38,$B$3:$C$12,2,FALSE)","v":"Tabla2"},"Salones de uso múltiple"]
[null,{"$f":"+'Cáculo de Ocupación'!C37","v":"Cualquiera"},"Tabla2","Salones de uso múltiple"]
[null,{"$f":"+'Cáculo de Ocupación'!C38","v":"Cualquiera"},"Tabla2","Salones de uso múltiple"]
[null,{"$f":"+'Cáculo de Ocupación'!C39","v":"Cualquiera"},"Tabla2","Salones de uso múltiple"]
[null,{"$f":"+'Cáculo de Ocupación'!C40","v":"Cualquiera"},"Tabla2","Salones de uso múltiple"]
[null,{"$f":"+'Cáculo de Ocupación'!C41","v":"Cualquiera"},"Tabla2","Salones de uso múltiple"]
[null,{"$f":"+'Cáculo de Ocupación'!C42","v":"Cualquiera"},"Tabla2","Salones de uso múltiple"]
[null,{"$f":"+'Cáculo de Ocupación'!C43","v":"Cualquiera"},"Tabla2","Salones de uso múltiple"]